bitfinex/quotes_BTCUSD_20251226
["timestamp","ask_amount","ask_price","bid_price","bid_amount"]
[1766744916742,4.443e-05,88807.0,88801.0,0.01126113]
[1766744917462,4.443e-05,88807.0,88802.0,0.011261]
[1766744917658,4.443e-05,88807.0,88800.0,0.01126126]
[1766744918247,4.443e-05,88807.0,88801.0,0.01126113]
[1766744919163,4.443e-05,88807.0,88800.0,0.01126126]
[1766744919562,4.443e-05,88807.0,88801.0,0.01126113]
[1766744920067,4.443e-05,88807.0,88802.0,0.011261]
[1766744921494,0.0004,88824.0,88818.0,0.05629489]
[1766744921620,0.0004,88824.0,88822.0,0.05629236]
[1766744922458,1e-08,88826.0,88825.0,0.05629045]
[1766744922665,6.869e-05,88826.0,88824.0,0.000222]
[1766744922978,6.869e-05,88826.0,88823.0,0.01125834]
[1766744923232,0.00055,88823.0,88821.0,0.01125859]
[1766744923393,0.00055,88823.0,88820.0,0.06755194]
[1766744923589,6.869e-05,88826.0,88820.0,0.01125872]
[1766744923769,6.869e-05,88826.0,88819.0,0.05629384]
[1766744923970,6.869e-05,88826.0,88816.0,0.01128]
[1766744924347,0.01125809,88825.0,88817.0,0.01128]
[1766744924492,6.869e-05,88826.0,88817.0,0.01128]
[1766744924493,0.01132665,88826.0,88817.0,0.01128]
[1766744924703,6.869e-05,88826.0,88818.0,0.01125897]
[1766744924901,6.869e-05,88826.0,88819.0,0.01125885]
[1766744926401,6.869e-05,88826.0,88817.0,0.07883415]
[1766744926402,0.01132665,88826.0,88817.0,0.0225391]
[1766744926611,6.869e-05,88826.0,88818.0,0.01125897]
[1766744927105,0.01125809,88825.0,88817.0,0.01128]
[1766744927354,0.01132665,88826.0,88817.0,0.0225391]
[1766744927552,0.01132665,88826.0,88817.0,0.01128]
[1766744927732,6.869e-05,88826.0,88817.0,0.0225391]
[1766744928272,6.869e-05,88826.0,88818.0,0.01125897]
[1766744929581,6.869e-05,88826.0,88817.0,0.01128]
[1766744929739,6.869e-05,88826.0,88818.0,0.01125897]
[1766744930076,6.869e-05,88826.0,88819.0,0.01125885]
[1766744930425,6.869e-05,88826.0,88818.0,0.01125897]
[1766744930876,6.869e-05,88826.0,88819.0,0.01125885]
[1766744931076,6.869e-05,88826.0,88818.0,0.01125897]
[1766744931297,6.869e-05,88826.0,88819.0,0.01125885]
[1766744931442,6.869e-05,88826.0,88818.0,0.01125897]
[1766744931638,6.869e-05,88826.0,88817.0,0.0225391]
[1766744931851,6.869e-05,88826.0,88819.0,0.01125885]
[1766744932031,6.869e-05,88826.0,88820.0,0.01125872]
[1766744932237,6.869e-05,88826.0,88819.0,0.01125885]
[1766744932445,6.869e-05,88826.0,88820.0,0.01125872]
[1766744932683,6.869e-05,88826.0,88819.0,0.01125885]
[1766744932879,6.869e-05,88826.0,88820.0,0.01125872]
[1766744933062,6.869e-05,88826.0,88819.0,0.01125885]
[1766744934388,6.869e-05,88826.0,88820.0,0.01125872]
[1766744935295,6.869e-05,88826.0,88821.0,0.01125859]
[1766744936814,6.9e-07,88826.0,88820.0,0.01125872]
[1766744937035,6.9e-07,88826.0,88819.0,0.01125885]
[1766744937237,6.9e-07,88826.0,88818.0,0.01125897]
[1766744937583,6.9e-07,88826.0,88820.0,0.01125872]
[1766744937783,0.06856069,88826.0,88820.0,0.01125872]
[1766744938495,0.06856069,88826.0,88819.0,0.01125885]
[1766744938683,0.06856069,88826.0,88820.0,0.01125872]
[1766744938883,0.06856069,88826.0,88819.0,0.01125885]
[1766744939267,0.06856069,88826.0,88817.0,0.07883426]
[1766744939484,0.06856069,88826.0,88819.0,0.01125885]
[1766744939722,0.19356759,88826.0,88820.0,0.01125872]
[1766744940050,0.19356759,88826.0,88818.0,0.01125897]
[1766744940832,0.19356759,88826.0,88820.0,0.01125872]
[1766744942405,0.19356759,88826.0,88821.0,0.01125859]
[1766744942833,0.19356759,88826.0,88820.0,0.01125872]
[1766744943042,0.19356759,88826.0,88819.0,0.01125885]
[1766744943246,0.19356759,88826.0,88820.0,0.01125872]
[1766744945152,0.19356759,88826.0,88822.0,0.01125847]
[1766744945357,0.19356759,88826.0,88821.0,0.01125859]
[1766744945663,0.19356759,88826.0,88822.0,0.01125847]
[1766744946024,0.19356759,88826.0,88821.0,0.01125859]
[1766744946950,0.19356759,88826.0,88822.0,0.01125847]
[1766744947747,0.19356759,88826.0,88821.0,0.01125859]
[1766744947748,0.03493632,88826.0,88821.0,0.01125859]
[1766744947947,0.03493632,88826.0,88819.0,0.01125885]
[1766744948356,0.03493632,88826.0,88820.0,0.01125872]
[1766744949065,0.03493632,88826.0,88819.0,0.01125885]
[1766744949263,0.03493632,88826.0,88820.0,0.01125872]
[1766744949477,0.03493632,88826.0,88819.0,0.01125885]
[1766744949633,0.03493632,88826.0,88820.0,0.01125872]
[1766744949817,0.03493632,88826.0,88819.0,0.01125885]
[1766744950025,0.03493632,88826.0,88820.0,0.01125872]
[1766744950222,0.03493632,88826.0,88821.0,0.01125859]
[1766744950430,0.03493632,88826.0,88822.0,0.01125847]
[1766744950867,0.03493632,88826.0,88821.0,0.01125859]
[1766744951466,0.03493632,88826.0,88822.0,0.01125847]
[1766744951668,0.03493632,88826.0,88821.0,0.01125859]
[1766744951851,0.03493632,88826.0,88822.0,0.01125847]
[1766744952062,0.03493632,88826.0,88823.0,0.01125834]
[1766744953623,0.03493632,88826.0,88822.0,0.01125847]
[1766744954554,0.03493632,88826.0,88823.0,0.01125834]
[1766744955526,0.03493632,88826.0,88822.0,0.01125847]
[1766744955729,0.03493632,88826.0,88821.0,0.01125859]
[1766744956135,0.03493632,88826.0,88820.0,0.01125872]
[1766744956316,0.03493632,88826.0,88821.0,0.01125859]
[1766744958843,0.03493632,88826.0,88820.0,0.06755187]
[1766744959038,0.03493632,88826.0,88819.0,0.06755258]
[1766744959243,0.03493632,88826.0,88821.0,0.01125859]
[1766744959445,0.03493632,88826.0,88820.0,0.01125872]
[1766744960463,0.03493632,88826.0,88819.0,0.01125885]
[1766744960624,0.03493632,88826.0,88820.0,0.01125872]
[1766744961159,0.03493632,88826.0,88817.0,0.0225391]
[1766744961467,0.074268,88820.0,88818.0,0.01128]
[1766744961606,0.074268,88820.0,88819.0,0.01128]
[1766744961810,0.0742,88820.0,88819.0,0.01128]
[1766744962626,0.01125821,88824.0,88819.0,0.01128]
[1766744962822,0.01125834,88823.0,88819.0,0.011212]
[1766744963024,0.01125821,88824.0,88819.0,0.011212]
[1766744963242,0.08545821,88824.0,88819.0,0.011212]
[1766744963458,0.0742,88824.0,88819.0,0.011212]
[1766744964039,0.073651,88824.0,88819.0,0.02247085]
[1766744964605,0.073651,88824.0,88820.0,0.01125872]
[1766744964963,0.073651,88824.0,88819.0,0.02247085]
[1766744965166,0.073651,88824.0,88819.0,0.011212]
[1766744966355,0.073651,88824.0,88819.0,0.02247085]
[1766744966739,0.073651,88824.0,88819.0,0.011212]
[1766744967254,0.073651,88824.0,88819.0,0.02247085]
[1766744967555,0.073651,88824.0,88819.0,0.011212]
[1766744968802,0.03493632,88826.0,88819.0,0.011212]
[1766744969000,0.03493632,88826.0,88822.0,0.01125847]
[1766744969305,0.03493632,88826.0,88823.0,0.01125834]
[1766744970222,0.03438632,88826.0,88823.0,0.06754973]
[1766744972835,0.03438632,88826.0,88824.0,0.05629079]
[1766744975681,0.0342947,88826.0,88824.0,0.05629079]
[1766744977568,0.0342947,88826.0,88823.0,0.06754977]
[1766744977790,0.0342947,88826.0,88823.0,0.01125834]
[1766744980195,0.000549,88823.0,88819.0,0.011212]
[1766744980383,0.0342947,88826.0,88820.0,0.01125872]
[1766744980760,0.0342947,88826.0,88821.0,0.01125859]
[1766744980903,0.0342947,88826.0,88821.0,0.01070959]
[1766744981103,0.0342947,88826.0,88820.0,0.01125872]
[1766744981329,0.0342947,88826.0,88821.0,0.01125859]
[1766744981532,0.0342947,88826.0,88820.0,0.01125872]
[1766744982307,0.04207103,88848.0,88821.0,0.01125859]
[1766744982450,0.01125264,88868.0,88851.0,0.01125479]
[1766744982646,0.01176076,88864.0,88852.0,0.01073]
[1766744982857,0.01176076,88864.0,88850.0,0.01125492]
[1766744983057,0.01176076,88864.0,88856.0,0.06752442]
[1766744983058,0.00050761,88864.0,88856.0,0.06752442]
[1766744983232,0.00058439,88857.0,88853.0,0.02250997]
[1766744983603,0.00049264,88854.0,88853.0,0.01125454]
[1766744984134,0.00049264,88854.0,88853.0,0.07928802]
[1766744984333,0.00049264,88854.0,88853.0,0.0230153]
[1766744984522,6.4e-07,88854.0,88853.0,0.0230153]
[1766744984945,6.4e-07,88854.0,88853.0,0.0225233]
[1766744988221,0.06896,88859.0,88857.0,0.05627018]
[1766744988378,0.068411,88859.0,88857.0,0.05627018]
[1766744989219,0.068411,88859.0,88856.0,0.01125416]
[1766744990035,0.068411,88859.0,88856.0,0.06752445]
[1766744990248,0.068411,88859.0,88856.0,0.01125416]
[1766744991407,0.05627018,88857.0,88812.0,0.45038477]
[1766744991625,0.06896,88847.0,88839.0,0.01125631]
[1766744991822,0.08024,88847.0,88836.0,0.05628304]
[1766744992095,0.06896,88846.0,88836.0,0.05628304]
[1766744992269,0.06896,88846.0,88839.0,0.01125631]
[1766744992487,0.06896,88846.0,88840.0,0.01125619]
[1766744992632,0.06896,88846.0,88842.0,0.01125593]
[1766744993864,0.06896,88846.0,88840.0,0.01125619]
[1766744994705,0.06896,88846.0,88756.0,0.05564586]
[1766744994706,0.06896,88835.0,88819.0,0.00353]
[1766744994893,0.06896,88835.0,88823.0,0.05629143]
[1766744995071,0.06896,88835.0,88825.0,0.01125809]
[1766744995394,0.06896,88834.0,88825.0,0.01125809]
[1766744995597,0.06896,88832.0,88824.0,0.06754878]
[1766744995963,0.06896,88832.0,88827.0,0.01125783]
[1766744996165,0.06896,88832.0,88826.0,0.01125796]
[1766744996363,0.06896,88832.0,88825.0,0.01125809]
[1766744996785,0.06896,88832.0,88826.0,0.01125796]
[1766744997261,0.06896,88832.0,88825.0,0.01125809]
[1766744997459,0.06896,88832.0,88826.0,0.01125796]
[1766744997665,0.06896,88832.0,88825.0,0.01125809]
[1766744998309,0.06896,88832.0,88827.0,0.01125783]
[1766744998531,0.06896,88832.0,88826.0,0.01125796]
[1766744999507,0.06896,88832.0,88825.0,0.01125809]
[1766745002578,0.06896,88832.0,88824.0,0.01125821]
[1766745003563,0.06896,88832.0,88823.0,0.01125834]
[1766745003793,0.06896,88832.0,88824.0,0.01125821]
[1766745004098,0.01128,88833.0,88832.0,0.000549]
[1766745004283,0.0002,88836.0,88832.0,0.000549]
[1766745004501,0.01128,88835.0,88833.0,0.00055]
[1766745004701,0.07882146,88835.0,88823.0,0.03749834]
[1766745004905,0.01125707,88833.0,88823.0,0.03749834]
[1766745005144,0.06896,88831.0,88817.0,0.02253783]
[1766745005347,0.06896,88828.0,88819.0,0.01125885]
[1766745005739,0.06896,88828.0,88821.0,0.01125859]
[1766745005871,0.06896,88828.0,88820.0,0.01125872]
[1766745006282,0.06896,88828.0,88822.0,0.01125847]
[1766745007083,0.01128,88827.0,88822.0,0.01125847]
[1766745007534,0.01128,88827.0,88821.0,0.01125859]
[1766745007878,0.01128,88827.0,88822.0,0.01125847]
[1766745009870,0.01128,88827.0,88821.0,0.01125859]
[1766745010088,0.05629426,88819.0,88808.0,0.01126024]
[1766745010314,0.08021897,88818.0,88807.0,0.01126037]
[1766745010547,0.06896,88813.0,88803.0,0.06756478]
[1766745010989,0.06896,88811.0,88801.0,0.01126113]
[1766745011222,0.06896,88809.0,88801.0,0.01126113]
[1766745011442,0.08022012,88809.0,88799.0,0.01126138]
[1766745011822,0.06896,88804.0,88788.0,0.01126278]
[1766745012063,0.06896,88796.0,88786.0,0.01126303]
[1766745012266,0.06896,88796.0,88785.0,0.01126316]
[1766745012267,0.06896,88793.0,88785.0,0.01126316]
[1766745012418,0.068411,88793.0,88790.0,0.01126252]
[1766745012814,0.068411,88793.0,88789.0,0.01126265]
[1766745012996,0.07967314,88793.0,88785.0,0.01126316]
[1766745013194,0.068411,88793.0,88785.0,0.01126316]
[1766745013399,0.068411,88793.0,88786.0,0.01126303]
[1766745014565,0.068411,88793.0,88787.0,0.01126291]
[1766745015113,0.068411,88793.0,88786.0,0.01126303]
[1766745015325,0.068411,88793.0,88787.0,0.01126291]
[1766745015525,0.000549,88787.0,88779.0,0.01126392]
[1766745015937,0.02254265,88789.0,88779.0,0.06758349]
[1766745016142,0.01128,88789.0,88782.0,0.01126354]
[1766745016350,0.01128,88789.0,88783.0,0.01126341]
[1766745016566,0.01128,88789.0,88782.0,0.01126354]
[1766745016753,0.01128,88789.0,88780.0,0.01126379]
[1766745016958,0.01128,88789.0,88781.0,0.01126367]
[1766745017774,0.01128,88789.0,88782.0,0.01126354]
[1766745017961,0.01128,88789.0,88783.0,0.01126341]
[1766745018361,0.01128,88789.0,88784.0,0.01126329]
[1766745018723,0.01128,88789.0,88785.0,0.01126316]
[1766745019384,0.01128,88789.0,88783.0,0.01126341]
[1766745019999,0.01128,88789.0,88784.0,0.01126329]
[1766745020204,0.01128,88789.0,88776.0,0.0112643]
[1766745020205,0.000549,88784.0,88776.0,0.0112643]
[1766745020378,0.01126367,88781.0,88771.0,0.01126494]
[1766745020609,0.01126417,88777.0,88767.0,0.01128]
[1766745020726,0.01126392,88779.0,88766.0,0.01126557]
[1766745020920,0.01128,88782.0,88772.0,0.05632406]
[1766745021162,0.01128,88791.0,88789.0,0.06757577]
[1766745021365,0.04053301,88825.0,88790.0,0.01126252]
[1766745021366,0.01126113,88801.0,88790.0,0.01126252]
[1766745021579,0.02254126,88800.0,88791.0,0.0112624]
[1766745021947,0.01126138,88799.0,88791.0,0.0112624]
[1766745022148,0.01126151,88798.0,88790.0,0.01126252]
[1766745022405,0.01126138,88799.0,88790.0,0.01126252]
[1766745023364,0.01126151,88798.0,88789.0,0.01126265]
[1766745023566,0.01126151,88798.0,88790.0,0.01126252]
[1766745023776,0.01126164,88797.0,88787.0,0.01126291]
[1766745023983,0.01126176,88796.0,88786.0,0.01126303]
[1766745024193,0.01126189,88795.0,88787.0,0.01126291]
[1766745024400,0.01126189,88795.0,88786.0,0.01126303]
[1766745025035,0.01126176,88796.0,88788.0,0.01126278]
[1766745025204,0.01126164,88797.0,88788.0,0.01126278]
[1766745025537,0.01126176,88796.0,88787.0,0.01126291]
[1766745025703,0.01126189,88795.0,88786.0,0.01126303]
[1766745026314,0.01126176,88796.0,88787.0,0.06126291]
[1766745027697,0.01126189,88795.0,88787.0,0.05]
[1766745027895,0.01126252,88790.0,88787.0,0.03900387]
[1766745028100,0.01126252,88790.0,88787.0,0.03845487]
[1766745028297,0.05631388,88789.0,88787.0,0.03845487]
[1766745028756,0.06758037,88784.0,88774.0,0.01126455]
[1766745028936,0.01128,88785.0,88777.0,0.01126417]
[1766745029518,0.01128,88785.0,88778.0,0.01126405]
[1766745030149,0.01128,88785.0,88777.0,0.01126417]
[1766745030355,0.01128,88785.0,88778.0,0.01130848]
[1766745030739,0.01128,88785.0,88778.0,4.443e-05]
[1766745031426,0.01126329,88784.0,88778.0,4.443e-05]
[1766745033166,0.02254316,88785.0,88778.0,4.443e-05]
[1766745033697,0.01126329,88784.0,88778.0,4.443e-05]
[1766745034210,0.01126367,88781.0,88778.0,4.443e-05]
[1766745034378,0.05631962,88779.0,88778.0,4.443e-05]
[1766745040534,0.05607853,88779.0,88778.0,4.443e-05]
[1766745040735,0.01126494,88771.0,88763.0,0.01126595]
[1766745040888,0.01071594,88771.0,88763.0,0.00035915]
[1766745041088,0.01071594,88771.0,88763.0,0.0116251]
[1766745041293,0.06760369,88773.0,88763.0,0.00035915]
[1766745041500,0.01126481,88772.0,88763.0,0.00035915]
[1766745041706,0.01126494,88771.0,88763.0,0.0116251]
[1766745041906,0.01126481,88772.0,88763.0,0.0116251]
[1766745042199,0.01126481,88772.0,88764.0,0.01126582]
[1766745042399,0.01126481,88772.0,88762.0,0.010507]
[1766745042654,0.01162335,88772.0,88762.0,0.010507]
[1766745042858,0.00035854,88772.0,88765.0,0.0112657]
[1766745042984,0.01128,88773.0,88772.0,0.00019146]
[1766745043195,0.01128,88773.0,88772.0,0.00028439]
[1766745043396,0.01128,88773.0,88772.0,9.293e-05]
[1766745044029,0.011089,88773.0,88772.0,9.293e-05]
[1766745046351,0.011089,88773.0,88772.0,9.3e-07]
[1766745052944,0.01126329,88784.0,88774.0,0.01126455]
[1766745053137,0.01126278,88788.0,88780.0,9.2e-05]
[1766745053354,0.01128,88787.0,88780.0,9.2e-05]
[1766745053524,0.02254291,88787.0,88778.0,0.01126405]
[1766745053729,0.01128,88787.0,88779.0,0.01126392]
[1766745054484,0.02254291,88787.0,88778.0,0.01126405]
[1766745054687,0.01126303,88786.0,88777.0,0.01126417]
[1766745056835,0.02254291,88787.0,88778.0,0.01126405]
[1766745057276,0.02254291,88787.0,88779.0,0.01126392]
[1766745059018,0.01128,88787.0,88779.0,0.01126392]
[1766745059922,0.02254291,88787.0,88778.0,0.01126405]
[1766745060662,0.02254291,88787.0,88777.0,0.01126417]
[1766745060823,0.000457,88777.0,88773.0,0.01126468]
[1766745061009,0.01126367,88781.0,88772.0,0.01146574]
[1766745061215,0.00034907,88772.0,88765.0,0.0112657]
[1766745061432,0.00034907,88772.0,88765.0,0.01133843]
[1766745061728,0.08142468,88773.0,88765.0,0.01133843]
[1766745061935,0.08142468,88773.0,88765.0,7.273e-05]
[1766745062507,0.41376034,88780.0,88770.0,0.05632504]
[1766745062708,0.42502413,88780.0,88771.0,0.01126494]
[1766745063110,0.42502413,88780.0,88770.0,0.01126506]
[1766745063320,0.01126392,88779.0,88769.0,0.01126519]
[1766745063527,0.01126405,88778.0,88769.0,0.01126519]
[1766745063729,0.48134345,88780.0,88765.0,7.273e-05]
[1766745063730,0.000256,88769.0,88765.0,7.273e-05]
[1766745064453,0.08142468,88773.0,88765.0,7.273e-05]
[1766745065308,7.2e-05,88765.0,88757.0,0.01146671]
[1766745065512,0.01126532,88768.0,88760.0,0.01163854]
[1766745065710,0.01126544,88767.0,88760.0,0.01163854]
[1766745065936,0.01126532,88768.0,88760.0,0.01163854]
[1766745067210,0.01126519,88769.0,88760.0,0.02290487]
[1766745067414,0.4137454,88770.0,88761.0,0.0112662]
[1766745067611,0.01126519,88769.0,88760.0,0.01163854]
[1766745067816,0.01126532,88768.0,88760.0,0.01163854]
[1766745068176,0.01126532,88768.0,88760.0,0.02290487]
[1766745068384,0.01126519,88769.0,88760.0,0.02290487]
[1766745069319,0.01126532,88768.0,88760.0,0.01163854]
[1766745069685,0.01126519,88769.0,88760.0,0.02290487]
[1766745070200,0.01126532,88768.0,88760.0,0.01163854]
[1766745070505,0.01126519,88769.0,88760.0,0.02290487]
[1766745070890,0.47007109,88770.0,88761.0,0.0112662]
[1766745071088,0.01126532,88768.0,88760.0,0.02290487]
[1766745071423,0.01126544,88767.0,88760.0,0.01163854]
[1766745072179,0.01126532,88768.0,88760.0,0.01163854]
[1766745072606,0.01126544,88767.0,88760.0,0.01163854]
[1766745073023,0.07016,88770.0,88767.0,0.000293]
[1766745073554,0.07016,88770.0,88761.0,0.0112662]
[1766745073786,0.07016,88770.0,88762.0,0.01126608]
[1766745073906,0.08142506,88770.0,88762.0,0.01126608]
[1766745074107,0.07016,88770.0,88762.0,0.01126608]
[1766745075374,0.08142506,88770.0,88761.0,0.0112662]
[1766745077078,0.08142506,88770.0,88762.0,0.01126608]
[1766745077785,0.07016,88770.0,88762.0,0.01126608]
[1766745078706,0.01126494,88771.0,88762.0,0.01126608]
[1766745079348,0.000256,88762.0,88760.0,0.01163854]
[1766745079821,0.01126532,88768.0,88760.0,0.01163854]
[1766745080410,0.01126519,88769.0,88760.0,0.02290487]
[1766745080606,0.01126532,88768.0,88760.0,0.02290487]
[1766745081002,0.01126532,88768.0,88760.0,0.01163854]
[1766745081631,0.01126544,88767.0,88760.0,0.01163854]
[1766745081829,0.01126557,88766.0,88760.0,0.01163854]
[1766745082132,0.000256,88760.0,88757.0,0.0002]
[1766745082290,0.00035864,88760.0,88757.0,0.0002]
[1766745082717,0.00035864,88760.0,88757.0,0.01146671]
[1766745083687,6.564e-05,88760.0,88757.0,0.01146671]
[1766745084678,6.564e-05,88760.0,88757.0,0.0002]
[1766745085230,6.564e-05,88760.0,88752.0,0.01126735]
[1766745085430,6.564e-05,88760.0,88756.0,0.01126684]
[1766745085749,0.01114034,88764.0,88756.0,0.01126684]
[1766745085928,0.02254557,88766.0,88756.0,0.01137444]
[1766745086111,0.0112657,88765.0,88757.0,0.01126671]
[1766745086651,0.02254557,88766.0,88757.0,0.01126671]
[1766745086898,0.01128,88766.0,88760.0,0.01126633]
[1766745087102,0.01128,88766.0,88756.0,0.05644178]
[1766745087103,0.01128,88766.0,88756.0,0.01137444]
[1766745087315,0.0112657,88765.0,88757.0,0.01126671]
[1766745087517,0.0112657,88765.0,88756.0,0.01137444]
[1766745087690,0.01126582,88764.0,88756.0,0.01137444]
[1766745087829,0.0112657,88765.0,88757.0,0.01126671]
[1766745088037,0.02254557,88766.0,88757.0,0.01126671]
[1766745088597,0.0112657,88765.0,88756.0,0.01137444]
[1766745088797,0.0112657,88765.0,88756.0,0.0001076]
[1766745088960,0.000107,88756.0,88750.0,0.01128]
[1766745089156,0.00010748,88756.0,88750.0,0.01128]
[1766745089978,0.00010748,88756.0,88751.0,0.01126747]
[1766745090396,0.00010748,88756.0,88752.0,0.01126735]
[1766745090798,0.00010748,88756.0,88751.0,0.01126747]
[1766745090999,0.00010748,88756.0,88750.0,0.01128]
[1766745091198,0.00010748,88756.0,88750.0,0.0225476]
[1766745091733,0.00010748,88756.0,88750.0,0.01128]
[1766745091939,0.00010748,88756.0,88750.0,0.0225476]
[1766745092125,0.00010748,88756.0,88750.0,0.01128]
[1766745092615,0.00010748,88756.0,88750.0,0.0225476]
[1766745092833,0.00010748,88756.0,88751.0,0.01126747]
[1766745093037,0.00010748,88756.0,88752.0,0.01126735]
[1766745093334,0.00010748,88756.0,88751.0,0.01126747]
[1766745093631,0.00010748,88756.0,88752.0,0.01126735]
[1766745094210,0.00010748,88756.0,88751.0,0.01126747]
[1766745094414,0.00010748,88756.0,86531.0,0.0002]
[1766745094415,0.000349,88751.0,88746.0,0.01126811]
[1766745094944,0.01137432,88756.0,88747.0,0.01126798]
[1766745095091,0.00010748,88756.0,88747.0,0.01126798]
[1766745095421,0.00010748,88756.0,88749.0,0.01126773]
[1766745095617,0.00010748,88756.0,88750.0,0.0112676]
[1766745095824,0.00010748,88756.0,88749.0,0.01126773]
[1766745096023,0.00010748,88756.0,88750.0,0.0112676]
[1766745097853,0.00010748,88756.0,88749.0,0.01126773]
[1766745098265,0.00010748,88756.0,88748.0,0.01126785]
[1766745098431,0.00010748,88756.0,88749.0,0.01126773]
[1766745098633,0.00010748,88756.0,88748.0,0.01126785]
[1766745099689,0.00010748,88756.0,88744.0,0.06760956]
[1766745099850,0.000349,88748.0,88746.0,0.01126811]
[1766745100028,0.01126697,88755.0,88746.0,0.01126811]
[1766745100468,0.00010748,88756.0,88746.0,0.06760826]
[1766745100678,0.00010748,88756.0,88748.0,0.01126785]
[1766745101200,0.00010748,88756.0,88749.0,0.01126773]
[1766745101578,0.01126697,88755.0,88746.0,0.06760826]
[1766745102183,0.01126709,88754.0,88746.0,0.01126811]
[1766745102386,0.01126722,88753.0,88742.0,0.0676115]
[1766745102592,0.01126722,88753.0,88745.0,0.01126824]
[1766745102760,0.01126722,88753.0,88742.0,0.0676115]
[1766745102965,0.0112676,88750.0,88742.0,0.01126862]
[1766745103148,0.01126747,88751.0,88742.0,0.01126862]
[1766745103560,0.01126747,88751.0,88743.0,0.01126849]
[1766745104307,0.0112676,88750.0,88741.0,0.02254874]
[1766745104792,0.01126773,88749.0,88741.0,0.01128]
[1766745104957,0.0112676,88750.0,88741.0,0.01128]
[1766745105158,0.0112676,88750.0,88741.0,0.02254874]
[1766745105309,0.01126773,88749.0,88741.0,0.01128]
[1766745105529,0.05634033,88747.0,88741.0,0.01128]
[1766745105745,0.06760907,88746.0,88741.0,0.01128]
[1766745105944,0.01126824,88745.0,88741.0,0.010931]
[1766745106574,0.01126811,88746.0,88741.0,0.010931]
[1766745108042,0.01126811,88746.0,88737.0,0.01126925]
[1766745109214,0.01126824,88745.0,88736.0,0.02254938]
[1766745109409,0.01126824,88745.0,88737.0,0.01126925]
[1766745110342,0.01126811,88746.0,88737.0,0.01126925]
[1766745111151,0.01126811,88746.0,88738.0,0.01126912]
[1766745111653,0.01126773,88749.0,88739.0,0.011269]
[1766745111868,0.01126773,88749.0,88740.0,0.01126887]
[1766745112377,0.01126785,88748.0,88739.0,0.011269]
[1766745112575,0.01126785,88748.0,88740.0,0.01126887]
[1766745113103,0.01126773,88749.0,88740.0,0.01126887]
[1766745113715,0.01126785,88748.0,88740.0,0.01126887]
[1766745114127,0.01126773,88749.0,88740.0,0.01126887]
[1766745114630,0.01126785,88748.0,88739.0,0.011269]
[1766745115136,0.01126773,88749.0,88740.0,0.01126887]
[1766745116476,0.01126785,88748.0,88739.0,0.011269]
[1766745116887,0.01126785,88748.0,88740.0,0.01126887]
[1766745117078,0.01126785,88748.0,88739.0,0.011269]
[1766745117610,0.01126773,88749.0,88740.0,0.01126887]
[1766745117742,0.00910855,88748.0,88739.0,0.011269]
[1766745118145,0.00910855,88748.0,88740.0,0.01126887]
[1766745118685,0.00910855,88748.0,88739.0,0.011269]
[1766745118868,0.00910855,88748.0,88740.0,0.01126887]
[1766745119249,0.00910855,88748.0,88739.0,0.011269]
[1766745120398,0.00055,88739.0,88736.0,0.01128]
[1766745120801,0.01126874,88741.0,88736.0,0.01128]
[1766745121030,0.067613,88741.0,88736.0,0.01128]
[1766745121179,0.01126874,88741.0,88736.0,0.01128]
[1766745121562,0.06761208,88742.0,88736.0,0.01128]
[1766745122194,0.06761208,88742.0,88730.0,0.05635068]
[1766745122195,0.01126874,88741.0,88729.0,0.06762133]
[1766745122540,0.01126887,88740.0,88732.0,0.02254989]
[1766745123139,0.01126874,88741.0,88732.0,0.02254989]
[1766745124848,0.01126862,88742.0,88733.0,0.01126976]
[1766745126172,0.01126874,88741.0,88733.0,0.01126976]
[1766745126377,0.01126862,88742.0,88733.0,0.01126976]
[1766745126557,0.01126874,88741.0,88732.0,0.02254989]
[1766745126759,0.01126862,88742.0,88733.0,0.01126976]
[1766745126941,0.01126874,88741.0,88732.0,0.02254989]
[1766745127351,0.01126887,88740.0,88732.0,0.01128]
[1766745128348,0.011269,88739.0,88732.0,0.01128]
[1766745128769,0.011269,88739.0,88732.0,0.01073]
[1766745128770,0.01126938,88736.0,88732.0,0.01073]
[1766745129031,0.01126925,88737.0,88732.0,0.0080447]
[1766745129151,0.01126938,88736.0,88732.0,0.0080447]
[1766745129352,0.01126912,88738.0,88732.0,0.0080447]
[1766745129573,0.011269,88739.0,88732.0,0.0080447]
[1766745130383,0.01126887,88740.0,88732.0,0.0080447]
[1766745131035,0.01126862,88742.0,88732.0,0.0080447]
[1766745131215,0.01126836,88744.0,88742.0,0.000549]
[1766745131596,0.01126849,88743.0,88735.0,0.01126951]
[1766745131802,0.01126862,88742.0,88734.0,0.01126963]
[1766745132120,0.01126849,88743.0,88734.0,0.01126963]
[1766745132442,0.01126836,88744.0,88735.0,0.01126951]
[1766745132803,0.01126836,88744.0,88736.0,0.01126938]
[1766745133005,0.01110183,88744.0,88736.0,0.01126938]
[1766745133773,0.01126849,88743.0,88734.0,0.01126963]
[1766745134053,0.01126849,88743.0,88735.0,0.01126951]
[1766745135244,0.01126849,88743.0,88734.0,0.01126963]
[1766745136374,0.01126862,88742.0,88734.0,0.01126963]
[1766745136583,0.01126887,88740.0,88732.0,0.0080447]
[1766745136761,0.01126874,88741.0,88732.0,0.0080447]
[1766745136920,0.01126887,88740.0,88732.0,0.0080447]
[1766745137130,0.01126874,88741.0,88732.0,0.01931459]
[1766745137359,0.01126862,88742.0,88733.0,0.01126976]
[1766745137736,0.01126874,88741.0,88732.0,0.01931459]
[1766745138615,0.00909648,88741.0,88733.0,0.01126976]
[1766745138852,0.01126862,88742.0,88733.0,0.01126976]
[1766745139979,0.05634289,88743.0,88733.0,0.01126976]
[1766745140804,0.01126874,88741.0,88732.0,0.01931459]
[1766745142378,0.01126874,88741.0,88733.0,0.01126976]
[1766745142576,0.01126874,88741.0,88732.0,0.01931459]
[1766745143144,0.01126874,88741.0,88733.0,0.01126976]
[1766745143350,0.011269,88739.0,88732.0,0.0080447]
[1766745143549,0.01126912,88738.0,88732.0,0.0080447]
[1766745143995,0.01126925,88737.0,88732.0,0.0080447]
[1766745144163,0.01126912,88738.0,88732.0,0.0080447]
[1766745144392,0.01127014,88730.0,88727.0,0.0002]
[1766745144867,0.0676198,88732.0,88730.0,0.000549]
[1766745145254,0.0676198,88732.0,88727.0,0.0002]
[1766745145450,0.01127001,88731.0,88727.0,0.0002]
[1766745146090,0.01126989,88732.0,88731.0,0.000549]
[1766745146524,0.01127001,88731.0,88727.0,0.0002]
[1766745146709,0.01127014,88730.0,88727.0,0.0002]
[1766745147124,0.06761973,88732.0,88727.0,0.0002]
[1766745147279,0.06762088,88730.0,88727.0,0.0002]
[1766745149047,0.07890088,88730.0,88727.0,0.0002]
[1766745149440,0.05635199,88728.0,88727.0,0.0002]
[1766745149963,0.06762597,88724.0,88718.0,0.00028773]
[1766745150140,0.01127116,88722.0,88718.0,0.00028773]
[1766745150529,0.01127116,88722.0,88718.0,0.00064637]
[1766745150915,0.0112709,88724.0,88718.0,0.00064637]